bitfinex/quotes_ETHUSD_20240608
["timestamp","ask_amount","ask_price","bid_price","bid_amount"]
[1717849724968,0.725,3685.2,3684.7,3.89447986]
[1717849726914,1.76266035,3685.2,3684.7,1.56797986]
[1717849727301,2.4166,3685.1,3684.7,1.56797986]
[1717849727911,0.725,3685.0,3684.7,1.56797986]
[1717849728584,1.31159494,3685.0,3684.7,1.56797986]
[1717849734239,0.725,3684.8,3684.7,1.56797986]
[1717849735448,2.71377,3684.9,3684.7,1.56797986]
[1717849736759,3.46173253,3684.9,3684.7,1.56797986]
[1717849737901,3.46173253,3684.9,3684.7,0.1751252]
[1717849738310,3.46173253,3684.9,3684.3,2.3265]
[1717849738623,3.46173253,3684.9,3684.4,1.56852447]
[1717849741740,0.725,3684.8,3684.4,1.56852447]
[1717849744527,2.71393,3684.7,3684.4,1.56852447]
[1717849744737,5.15927,3684.5,3684.4,0.17566981]
[1717849745035,5.74595631,3684.5,3683.8,7.48]
[1717849745239,5.74595631,3684.5,3684.4,0.17564314]
[1717849745536,5.87826491,3684.5,3683.9,1.39285466]
[1717849745726,5.87826491,3684.5,3684.4,0.17564314]
[1717849745926,5.87826491,3684.5,3683.9,1.39285466]
[1717849745927,6.46495903,3684.5,3683.9,1.39285466]
[1717849746128,5.15927,3684.5,3684.4,0.17583468]
[1717849746358,5.15927,3684.5,3683.9,1.39285466]
[1717849746559,5.15927,3684.5,3684.4,0.17583468]
[1717849746768,5.15927,3684.5,3683.9,1.39285466]
[1717849746941,5.74596932,3684.5,3684.4,0.17583468]
[1717849747136,5.74596932,3684.5,3683.9,1.39285466]
[1717849747337,5.74596932,3684.5,3684.4,0.17583468]
[1717849747538,5.74596932,3684.5,3683.9,1.39285466]
[1717849748158,3.30076932,3684.5,3684.0,0.17583468]
[1717849748366,2.71407,3684.5,3684.1,1.39285466]
[1717849748967,2.71407,3684.5,3684.2,0.17583468]
[1717849749962,2.71407,3684.5,3683.8,7.48]
[1717849750149,2.71407,3684.5,3684.3,0.17583468]
[1717849750356,3.16008951,3684.5,3683.8,8.87285466]
[1717849750560,2.71407,3684.5,3684.4,0.1759544]
[1717849751069,2.71407,3684.5,3683.8,1.39285466]
[1717849751238,2.71407,3684.5,3684.4,0.1759544]
[1717849751442,2.71407,3684.5,3683.8,1.39285466]
[1717849751766,2.71407,3684.5,3684.4,0.1759544]
[1717849751966,3.35261777,3684.5,3683.8,1.39285466]
[1717849752138,2.71407,3684.5,3684.4,0.1759544]
[1717849752338,2.71407,3684.5,3683.8,1.39285466]
[1717849752553,2.71407,3684.5,3684.4,0.1759544]
[1717849752740,2.71407,3684.5,3683.8,1.39285466]
[1717849752945,2.71407,3684.5,3684.4,0.1759544]
[1717849753145,3.35261777,3684.5,3683.8,1.39285466]
[1717849753344,3.35261777,3684.5,3684.4,0.1759544]
[1717849753560,3.35261777,3684.5,3683.8,1.39285466]
[1717849753732,2.71407,3684.5,3684.4,0.1759544]
[1717849753945,2.71407,3684.5,3683.8,1.39285466]
[1717849754160,2.71407,3684.5,3684.4,0.1759544]
[1717849755152,2.71407,3684.5,3683.8,1.39285466]
[1717849755379,2.71407,3684.5,3684.4,0.1759544]
[1717849755585,3.35261777,3684.5,3684.4,0.1759544]
[1717849755897,3.35261777,3684.5,3683.8,1.39285466]
[1717849756103,2.71407,3684.5,3684.4,0.1759544]
[1717849756305,2.71407,3684.5,3683.8,1.39285466]
[1717849756509,2.71407,3684.5,3684.4,0.1759544]
[1717849756671,2.71407,3684.5,3683.8,1.39285466]
[1717849756854,2.71407,3684.5,3684.4,0.1759544]
[1717849757054,2.71407,3684.5,3683.8,1.39285466]
[1717849757055,3.35261677,3684.5,3683.8,1.39285466]
[1717849757251,2.71407,3684.5,3684.4,0.1759544]
[1717849757555,2.71407,3684.5,3683.8,1.39285466]
[1717849757754,2.71407,3684.5,3684.4,0.1759544]
[1717849758257,2.71407,3684.5,3683.9,2.3011]
[1717849758452,2.71407,3684.5,3683.8,1.39285466]
[1717849758673,5.71477,3684.5,3683.8,1.39285466]
[1717849758878,5.71477,3684.5,3683.9,0.17593043]
[1717849761054,4.98977,3684.5,3683.9,0.17593043]
[1717849763587,2.71407,3684.5,3683.9,0.17593043]
[1717849771105,2.71407,3684.5,3684.0,1.39285466]
[1717849771510,2.71407,3684.5,3684.1,0.17555334]
[1717849771804,2.71407,3684.5,3684.0,1.39285466]
[1717849772011,2.71407,3684.5,3684.2,0.17555334]
[1717849772168,2.71407,3684.5,3684.0,1.39285466]
[1717849772804,2.71407,3684.5,3684.1,0.17555334]
[1717849773214,0.58669773,3684.7,3684.2,1.39285466]
[1717849773513,3.0,3684.8,3684.2,4.00516611]
[1717849773711,3.58669773,3684.8,3684.2,4.00516611]
[1717849774714,3.58669773,3684.8,3684.2,4.73016611]
[1717849774934,3.0,3684.8,3684.2,2.29336611]
[1717849775222,3.58669773,3685.3,3684.4,0.725]
[1717849775419,3.58669773,3685.3,3684.5,1.39285466]
[1717849775775,3.58669773,3685.3,3684.6,0.17551145]
[1717849775976,0.58669773,3685.2,3684.7,1.39285466]
[1717849776512,3.58669773,3685.3,3684.8,2.4368]
[1717849776717,3.58669773,3685.3,3684.9,1.39285466]
[1717849776897,3.58669773,3685.3,3684.9,1.56836611]
[1717849782427,3.0,3685.3,3684.9,1.56836611]
[1717849784729,3.0,3685.3,3685.0,2.3202]
[1717849785015,3.0,3685.3,3685.1,1.39285466]
[1717849785217,3.0,3685.3,3685.1,1.56795321]
[1717849788736,0.58651624,3685.6,3685.1,1.56795321]
[1717849788930,3.58651624,3685.8,3685.1,1.56795321]
[1717849789234,0.58651624,3685.7,3685.1,1.56795321]
[1717849791308,3.0,3685.8,3685.1,1.56795321]
[1717849791479,3.5865199,3685.8,3685.1,1.56795321]
[1717849792081,0.5865199,3685.7,3685.1,1.56795321]
[1717849793100,1.3115199,3685.7,3685.1,1.56795321]
[1717849793298,2.25073289,3685.7,3685.1,1.56795321]
[1717849797084,0.5865199,3685.6,3685.1,1.56795321]
[1717849797290,2.25073289,3685.7,3685.1,1.56795321]
[1717849797594,0.5865199,3685.6,3685.1,1.56795321]
[1717849798307,2.25073289,3685.7,3685.1,1.56795321]
[1717849798624,0.79638429,3685.6,3685.1,1.56795321]
[1717849799028,1.38290419,3685.6,3685.1,1.56795321]
[1717849800526,0.79638429,3685.6,3685.1,1.56795321]
[1717849800737,1.3115199,3685.7,3685.1,1.56795321]
[1717849802228,2.71326,3685.6,3685.1,1.56795321]
[1717849802428,3.725,3685.5,3685.1,1.56795321]
[1717849802728,4.3115199,3685.5,3685.1,1.56795321]
[1717849803433,3.5865199,3685.5,3685.1,1.56795321]
[1717849803615,3.0,3685.5,3685.1,1.56795321]
[1717849804806,3.0,3685.5,3685.1,4.03375321]
[1717849808301,3.2997799,3685.6,3685.1,4.03375321]
[1717849808501,2.71326,3685.6,3685.1,4.03375321]
[1717849810355,0.5865199,3685.8,3685.2,2.4658]
[1717849810568,0.5865199,3685.8,3685.3,1.39285466]
[1717849810776,0.5865199,3685.8,3685.4,2.4658]
[1717849810925,3.0,3685.9,3685.5,1.39285466]
[1717849812241,3.0,3685.9,3685.6,2.4658]
[1717849812430,3.0,3685.9,3685.6,3.85865466]
[1717849813440,3.0,3685.9,3685.7,1.39285466]
[1717849813951,3.58648348,3685.9,3685.7,1.39285466]
[1717849814198,3.0,3685.9,3685.7,1.39285466]
[1717849819097,3.0,3685.9,3685.8,0.17399778]
[1717849819261,3.0,3685.9,3685.7,1.39285466]
[1717849819576,3.0,3685.9,3685.8,0.17387219]
[1717849819878,3.0,3685.9,3685.7,1.39285466]
[1717849820080,3.0,3685.9,3685.8,0.17387219]
[1717849820236,3.0,3685.9,3685.7,1.39285466]
[1717849820436,3.0,3685.9,3685.8,0.17387219]
[1717849820636,3.0,3685.9,3685.7,1.39285466]
[1717849820960,3.0,3685.9,3685.8,0.17387219]
[1717849821272,3.0,3685.9,3685.7,1.39285466]
[1717849821462,3.0,3685.9,3685.8,0.17387219]
[1717849821660,3.0,3685.9,3685.8,1.56672685]
[1717849821858,3.0,3685.9,3685.8,1.39285466]
[1717849822063,3.0,3685.9,3685.8,1.56672685]
[1717849822557,3.0,3686.3,3685.8,1.56672685]
[1717849822762,3.0,3686.3,3685.9,1.39285466]
[1717849822959,3.0,3686.3,3685.9,3.86025466]
[1717849823478,3.0,3686.3,3686.0,0.17387219]
[1717849823679,3.0,3686.3,3686.0,1.39285466]
[1717849823974,3.0,3686.3,3686.1,0.17387219]
[1717849824143,3.0,3686.3,3686.1,1.56672685]
[1717849825376,3.58648348,3686.3,3686.1,1.56672685]
[1717849825577,3.0,3686.3,3686.1,1.56672685]
[1717849828444,3.0,3686.3,3686.2,2.4674]
[1717849828763,0.58648348,3686.7,3686.2,4.03388169]
[1717849829083,2.7124,3686.8,3686.3,1.39285466]
[1717849829742,2.7124,3686.8,3686.4,0.17362703]
[1717849829978,2.7124,3686.8,3686.4,1.56648169]
[1717849830175,3.0,3686.7,3686.4,1.56648169]
[1717849832465,3.0,3686.7,3686.5,1.39285466]
[1717849832846,3.0,3687.1,3686.6,2.64074002]
[1717849833048,3.725,3687.1,3686.6,4.03359468]
[1717849833382,3.58632178,3687.1,3686.6,4.03359468]
[1717849833551,3.0,3687.1,3686.6,4.03359468]
[1717849834463,3.0,3687.1,3686.7,1.39285466]
[1717849834973,3.0,3687.1,3686.8,0.17328023]
[1717849835347,3.0,3687.1,3686.7,1.39285466]
[1717849835549,3.725,3687.1,3686.9,0.17328023]
[1717849835896,3.725,3687.1,3687.0,0.17328023]
[1717849836055,4.60042,3687.1,3687.0,0.17328023]
[1717849836255,4.60042,3687.1,3686.7,1.39285466]
[1717849836457,5.18675918,3687.1,3687.0,0.17293943]
[1717849836760,2.3171,3687.0,3686.7,1.39285466]
[1717849837568,0.725,3686.9,3685.9,5.18038]
[1717849837773,3.725,3686.9,3686.0,1.39285466]
[1717849838155,0.725,3686.7,3686.0,1.39285466]
[1717849841093,0.725,3686.7,3686.1,0.17301118]
[1717849841294,3.43749,3686.7,3686.2,1.39285466]
[1717849841496,0.3725,3686.6,3686.2,1.39285466]
[1717849841720,3.43749,3686.7,3686.2,1.39285466]
[1717849841905,3.43749,3686.7,3686.3,0.17301118]
[1717849842316,3.43749,3686.7,3686.2,1.39285466]
[1717849842602,3.43749,3686.7,3686.4,0.17301118]
[1717849842792,2.4455,3686.6,3686.2,1.39285466]
[1717849843256,2.4455,3686.6,3686.3,0.17306498]
[1717849843585,0.725,3686.5,3686.2,1.39285466]
[1717849843793,0.725,3686.5,3686.4,0.17306498]
[1717849843992,0.725,3686.5,3686.2,1.39285466]
[1717849844162,0.725,3686.5,3686.4,0.17306498]
[1717849844360,0.725,3686.5,3686.2,1.39285466]
[1717849844562,0.725,3686.5,3686.4,0.17306498]
[1717849844761,0.718,3686.5,3686.2,1.39285466]
[1717849845002,0.718,3686.5,3686.4,0.17306498]
[1717849845154,0.718,3686.5,3686.2,1.39285466]
[1717849845357,0.718,3686.5,3686.4,0.17306498]
[1717849845562,0.718,3686.5,3686.2,1.39285466]
[1717849845780,0.718,3686.5,3686.4,0.17306498]
[1717849845997,0.718,3686.5,3686.2,1.39285466]
[1717849846219,0.718,3686.5,3686.4,0.17306498]
[1717849846712,0.718,3686.5,3686.2,1.39285466]
[1717849846895,0.718,3686.5,3686.4,0.17306498]
[1717849847094,0.718,3686.5,3686.2,1.39285466]
[1717849847296,0.59240185,3686.6,3686.4,0.17306498]
[1717849847503,0.725,3686.6,3686.2,1.39285466]
[1717849847702,0.731,3686.6,3686.5,0.17306498]
[1717849848043,0.725,3686.6,3686.2,1.39285466]
[1717849848200,0.731,3686.6,3686.2,1.39285466]
[1717849848395,0.731,3686.6,3686.3,0.17328618]
[1717849848641,0.725,3686.6,3686.2,1.39285466]
[1717849848838,0.731,3686.6,3686.3,0.17328618]
[1717849849128,0.725,3686.6,3686.2,1.39285466]
[1717849849330,0.731,3686.6,3686.4,0.17328618]
[1717849849496,0.725,3686.6,3686.2,1.39285466]
[1717849849696,0.731,3686.6,3686.5,0.17328618]
[1717849849908,0.725,3686.6,3686.2,1.39285466]
[1717849850112,0.731,3686.6,3686.5,0.17328618]
[1717849850409,0.725,3686.6,3686.5,0.17328618]
[1717849850614,0.725,3686.6,3686.2,1.39285466]
[1717849850817,0.731,3686.6,3686.3,0.17328618]
[1717849851050,0.725,3686.6,3686.2,1.39285466]
[1717849851213,0.731,3686.6,3686.3,0.17328618]
[1717849851402,0.725,3686.6,3686.2,1.39285466]
[1717849851602,0.731,3686.6,3686.3,0.17328618]
[1717849851798,0.725,3686.6,3686.3,0.17328618]
[1717849852017,0.725,3686.6,3686.2,1.39285466]
[1717849852333,0.731,3686.6,3686.2,1.39285466]
[1717849852504,0.731,3686.6,3686.3,0.17328618]
[1717849852837,0.725,3686.6,3686.2,1.39285466]
[1717849853039,0.731,3686.6,3686.3,0.17328618]
[1717849853253,0.725,3686.6,3686.2,1.39285466]
[1717849853428,0.731,3686.6,3686.3,0.17328618]
[1717849853614,1.65787919,3686.6,3686.2,1.39285466]
[1717849853818,1.66387919,3686.6,3686.3,0.17328618]
[1717849854016,1.65787919,3686.6,3686.2,1.39285466]
[1717849854222,1.66387919,3686.6,3686.3,0.17328618]
[1717849854426,1.65787919,3686.6,3686.2,1.39285466]
[1717849854636,1.66387919,3686.6,3686.3,0.17328618]
[1717849854846,2.2989,3686.3,3685.5,2.4784]
[1717849855005,2.3049,3686.3,3685.6,1.56613487]
[1717849858444,0.006,3686.3,3685.6,1.56613487]
[1717849858618,1.31140185,3686.4,3685.6,1.56613487]
[1717849858819,1.31740185,3686.4,3685.6,1.56613487]
[1717849859410,0.59240185,3686.4,3685.7,2.4439]
[1717849859635,0.006,3686.4,3685.8,1.39285466]
[1717849859810,2.7186,3686.5,3685.9,0.17327421]
[1717849860011,2.7186,3686.5,3686.0,1.39285466]
[1717849860409,2.7186,3686.5,3686.1,0.17327421]
[1717849860612,2.7126,3686.5,3686.2,1.39285466]
[1717849861147,2.7126,3686.5,3686.3,0.17327421]
[1717849861512,2.7126,3686.5,3686.2,1.39285466]
[1717849861725,2.7126,3686.5,3686.4,0.17327421]
[1717849861913,2.7126,3686.5,3686.2,1.39285466]
[1717849862348,3.29900185,3686.5,3686.3,0.17327421]
[1717849862715,3.29900185,3686.5,3686.2,1.39285466]
[1717849862941,3.29900185,3686.5,3686.4,0.17327421]
[1717849863250,3.29900185,3686.5,3686.2,1.39285466]
[1717849863450,3.29900185,3686.5,3686.3,0.17327421]
[1717849863651,3.29900185,3686.5,3686.2,1.39285466]
[1717849864067,0.006,3686.6,3686.3,0.17327421]
[1717849864216,0.59240185,3686.8,3686.4,1.39285466]
[1717849864416,0.59240185,3686.8,3686.5,0.17327421]
[1717849865548,0.59240185,3686.8,3686.6,3.68665466]
[1717849865725,0.006,3686.8,3686.6,3.68665466]
[1717849865923,0.006,3687.0,3686.7,0.1732503]
[1717849866126,0.006,3687.2,3686.8,1.39285466]
[1717849866542,0.006,3687.1,3686.9,0.17305302]
[1717849866778,0.006,3687.2,3687.0,1.39285466]
[1717849867258,0.006,3687.2,3687.1,0.17292152]
[1717849867426,0.006,3687.2,3687.1,1.56577618]
[1717849879968,0.006,3687.2,3687.1,3.93837618]
[1717849889355,0.006,3687.4,3687.2,2.3726]
[1717849889681,0.006,3687.4,3687.3,1.39285466]
[1717849889843,0.006,3687.4,3687.3,1.56501111]
[1717849923532,3.43681,3687.6,3687.3,1.55901111]
[1717849923821,3.43681,3687.6,3687.4,1.39285466]
[1717849923822,2.71181,3687.6,3687.4,1.39285466]
[1717849924024,2.71181,3687.6,3687.4,1.56464978]
[1717849926334,4.13911385,3687.6,3687.4,0.17179512]
[1717849926624,4.13911385,3687.6,3687.2,0.006]
[1717849926855,0.58622854,3687.5,3687.1,0.006]
[1717849927039,4.13911385,3687.6,3687.0,0.006]
[1717849927331,2.71181,3687.6,3687.2,1.39285466]
[1717849927493,2.71181,3687.6,3687.3,2.4624]
[1717849927693,2.71181,3687.6,3687.4,1.39285466]
[1717849929595,1.31122854,3687.8,3687.4,1.39285466]
[1717849930397,3.58622854,3687.9,3687.4,1.39285466]
[1717849930598,0.725,3687.8,3687.4,1.39285466]
[1717849931215,0.725,3687.8,3687.5,0.17179512]
[1717849931415,0.725,3687.8,3687.5,1.39285466]
[1717849931714,3.58622854,3687.9,3687.6,0.17179512]
[1717849931916,0.725,3687.8,3687.6,0.17179512]
[1717849932642,0.725,3687.8,3687.7,0.17186085]
[1717849932950,0.725,3687.8,3687.5,1.39285466]
[1717849933119,0.725,3687.8,3687.6,0.17183695]
[1717849934743,4.31122854,3687.9,3687.6,1.56469161]
[1717849936131,3.58622854,3687.9,3687.7,1.39285466]
[1717849936467,4.31122854,3687.9,3687.7,1.39285466]
[1717849936757,4.31122854,3687.9,3687.8,0.17183695]
[1717849936951,4.31122854,3687.9,3687.8,1.56469161]
[1717849937952,3.58622854,3687.9,3687.8,1.56469161]
[1717849938112,3.0,3687.9,3687.8,1.56469161]
[1717849938634,3.725,3687.9,3687.8,1.56469161]
[1717849938818,3.58622854,3687.9,3687.8,1.56469161]
[1717849939151,3.725,3687.9,3687.8,1.56469161]
[1717849939461,4.31122854,3687.9,3687.8,1.56469161]
[1717849939632,3.58622854,3687.9,3687.8,1.56469161]
[1717849939832,3.0,3687.9,3687.8,1.56469161]
[1717849942216,3.725,3687.9,3687.8,1.56469161]
[1717849942416,5.01350239,3687.9,3687.8,0.17183695]
[1717849942962,2.71165,3687.8,3686.9,10.19223]
[1717849943169,3.0,3687.7,3687.0,1.56469161]
[1717849947668,3.725,3687.7,3687.0,1.56469161]
[1717849947868,4.31122854,3687.7,3687.0,1.56469161]
[1717849953268,0.725,3687.2,3687.0,1.56469161]
[1717849953574,2.3856,3687.3,3687.0,1.56469161]
[1717849955828,1.31123774,3687.4,3687.0,1.56469161]
[1717849956064,0.725,3687.4,3687.0,1.56469161]
[1717849956762,0.58623774,3687.5,3687.0,1.56469161]
[1717849956950,3.0,3687.7,3687.1,2.3057]
[1717849957282,3.0,3687.6,3687.2,1.56470954]
[1717849957435,3.725,3687.8,3687.2,1.56470954]
[1717849957636,4.31117087,3687.8,3687.2,1.56470954]
[1717849960439,3.58617087,3687.8,3687.2,1.56470954]
[1717849960777,4.31117087,3687.8,3687.2,1.56470954]
[1717849966288,3.725,3687.8,3687.2,1.56470954]
[1717849966573,3.58617971,3687.8,3687.2,1.56470954]
[1717849968187,3.0,3687.8,3687.2,1.56470954]
[1717849968579,0.725,3687.7,3687.2,1.56470954]
[1717849969286,1.612049,3687.7,3687.2,1.56470954]
[1717849969493,2.19825005,3687.7,3687.2,1.56470954]
[1717849969810,5.19825005,3687.7,3687.2,1.56470954]
[1717849972002,0.725,3687.3,3687.2,1.56470954]
[1717849972864,3.725,3687.3,3687.2,1.56470954]
[1717849973505,3.725,3687.3,3687.2,0.17185488]
[1717849973864,3.725,3687.3,3686.7,2.31]
[1717849974064,3.725,3687.3,3687.2,0.17206403]
[1717849974266,3.725,3687.3,3686.8,1.39285466]
[1717849974902,3.725,3687.3,3686.9,0.17206403]
[1717849975063,3.725,3687.3,3687.0,1.39285466]
[1717849975709,3.725,3687.3,3687.1,0.17206403]
[1717849975874,3.725,3687.3,3687.1,1.56491869]
[1717849978100,4.31125368,3687.3,3687.1,1.56491869]
[1717849979192,5.25696205,3687.3,3687.1,1.56491869]
[1717849979889,2.71208,3687.2,3687.1,0.17206403]
[1717849980094,6.29833368,3687.2,3687.1,0.17206403]
[1717849980404,6.29833368,3687.2,3686.5,4.5324]
[1717849980591,0.725,3686.9,3686.6,1.56490674]
[1717849981105,3.725,3686.9,3686.6,1.56490674]
[1717849985805,3.725,3686.9,3686.6,0.17205208]
[1717849986037,0.725,3686.7,3686.6,0.17205208]
[1717849986826,0.725,3686.7,3686.0,2.4519]
[1717849987123,0.725,3686.5,3686.1,1.39285466]
[1717849987278,2.71237,3686.8,3686.1,1.39285466]
[1717849987478,0.725,3686.6,3686.1,1.39285466]
[1717849991188,0.725,3686.6,3686.2,0.17218955]
[1717849991529,0.725,3686.6,3686.3,1.39285466]
[1717849992311,0.725,3686.6,3686.4,0.17218955]
[1717849992618,0.725,3686.6,3686.4,1.56504421]
[1717849992919,2.71237,3686.8,3686.4,1.56504421]
[1717849993108,0.725,3686.6,3686.4,1.56504421]
[1717850003692,2.71237,3686.8,3686.4,1.56504421]
[1717850003892,0.725,3686.5,3686.4,1.56504421]
[1717850012329,0.725,3686.7,3686.4,1.56504421]
[1717850019062,0.725,3686.7,3686.5,1.39285466]
[1717850019262,0.58631827,3687.1,3686.5,1.39285466]
[1717850019462,0.725,3686.9,3686.6,0.17209391]
[1717850019616,0.58631827,3687.1,3686.8,2.4058]
[1717850019822,0.725,3687.0,3686.9,1.39285466]
[1717850020163,0.725,3687.0,3686.9,1.56482906]
[1717850022461,1.66135908,3687.0,3686.9,1.56482906]
[1717850022833,1.66135908,3687.0,3686.9,1.39285466]
[1717850023058,2.71234,3686.9,3686.1,7.48]
[1717850023263,0.725,3686.6,3686.2,1.39285466]
[1717850023433,0.725,3686.6,3686.2,1.56453625]
[1717850025455,0.725,3686.4,3686.2,1.56453625]
[1717850027335,0.58628079,3686.8,3686.2,1.56453625]
[1717850027580,0.725,3686.5,3686.2,1.56453625]
[1717850029868,0.725,3687.0,3686.4,1.39285466]
[1717850030169,0.725,3686.7,3686.4,1.39285466]
[1717850030372,0.725,3686.7,3686.5,0.17168159]
[1717850030555,0.725,3686.7,3686.6,1.39285466]
[1717850031078,0.725,3686.7,3686.6,1.56453625]
[1717850032970,1.15613177,3686.7,3686.6,0.17168159]
[1717850033335,1.15613177,3686.7,3686.0,2.4058]
[1717850033548,0.725,3686.5,3686.1,1.39285466]
[1717850036072,0.725,3686.5,3686.2,0.17183099]
[1717850036239,0.725,3686.5,3686.3,1.39285466]
[1717850036872,0.725,3686.5,3686.4,0.17183099]
[1717850037076,0.725,3686.5,3686.4,1.56468565]
[1717850037372,0.725,3686.5,3686.4,1.39285466]
[1717850040957,0.725,3686.5,3685.7,5.04633]
[1717850041160,0.725,3686.5,3685.8,1.39285466]
[1717850041385,0.725,3686.5,3685.8,1.56468565]
[1717850042569,0.725,3686.3,3685.8,1.56468565]
[1717850046666,0.725,3686.5,3685.8,1.56468565]
[1717850056228,2.4869,3686.4,3685.8,1.56468565]
[1717850056630,2.4869,3686.4,3685.8,1.51468565]
[1717850057536,0.725,3686.3,3685.8,1.51468565]
[1717850066375,1.04619,3686.3,3685.8,1.51468565]
[1717850066582,0.725,3686.1,3685.8,1.51468565]
[1717850069682,4.632574,3686.3,3685.8,1.51468565]
[1717850069899,3.0,3686.3,3685.9,2.2866]
[1717850070066,0.58636627,3686.7,3686.1,2.2866]
[1717850070397,0.58636627,3686.8,3686.2,1.39285466]
[1717850070608,0.58636627,3686.8,3686.2,1.56482308]
[1717850070777,3.43733,3686.9,3686.2,1.56482308]
[1717850072201,3.0,3686.8,3686.2,1.56482308]
[1717850072373,3.58636627,3686.8,3686.2,1.56482308]
[1717850072572,3.0,3686.8,3686.2,1.56482308]
[1717850072895,3.58630423,3686.8,3686.2,1.56482308]
[1717850073295,0.725,3686.3,3686.2,1.56482308]
[1717850074318,0.58630423,3686.7,3686.2,1.56482308]
[1717850074513,0.725,3686.4,3686.2,1.56482308]
[1717850079577,2.3783,3686.3,3686.2,0.17196842]
[1717850079798,3.259888,3686.3,3685.5,12.57211]
[1717850080121,0.725,3686.1,3685.6,1.39285466]
[1717850080683,0.725,3685.9,3685.6,1.39285466]
[1717850081191,0.725,3685.9,3685.7,0.1722254]
[1717850081390,0.725,3685.9,3685.8,1.39285466]
[1717850081779,0.725,3685.9,3685.8,1.56508006]
[1717850095897,3.5344457,3685.9,3685.8,1.56508006]
[1717850096338,3.5344457,3685.9,3685.8,0.1722254]
[1717850096519,3.5344457,3685.9,3685.3,2.2]
[1717850096520,2.71317,3685.8,3685.3,2.2]
[1717850096721,0.725,3685.4,3685.0,7.48]
[1717850096928,2.3783,3685.7,3685.1,1.39285466]
[1717850097126,0.725,3685.2,3685.1,1.39285466]
[1717850098623,0.725,3685.4,3685.1,1.39285466]
[1717850100482,0.725,3685.2,3684.6,2.3788]
[1717850100782,0.725,3684.8,3684.7,1.39285466]
[1717850101453,0.725,3684.8,3684.0,9.8509]
[1717850101659,0.725,3684.5,3684.1,1.39285466]
[1717850102746,0.725,3684.3,3684.1,1.39285466]
[1717850104686,0.725,3684.5,3684.1,1.39285466]
[1717850105057,2.3565,3684.7,3684.1,1.39285466]
[1717850105257,3.0,3684.8,3684.1,1.39285466]
[1717850105489,0.725,3684.8,3684.1,1.39285466]
[1717850106857,0.725,3684.6,3684.1,1.39285466]
[1717850110573,0.697,3684.6,3684.1,1.39285466]
[1717850111199,0.697,3684.6,3684.2,0.17324167]
[1717850111378,0.697,3684.6,3684.3,1.39285466]
[1717850112110,0.697,3684.6,3684.4,0.17324167]
[1717850112424,0.697,3684.6,3684.5,1.39285466]
[1717850112892,0.697,3684.6,3684.5,1.5664851]
[1717850114414,0.697,3684.6,3684.5,0.17363044]
[1717850114791,0.697,3684.6,3684.0,2.3709]
[1717850114992,0.697,3684.6,3684.5,0.17363044]
[1717850115216,0.697,3684.6,3684.1,1.39285466]
[1717850115420,0.697,3684.6,3684.5,0.17363044]
[1717850115619,0.697,3684.6,3684.1,1.39285466]
[1717850115807,0.697,3684.6,3684.5,0.17363044]
[1717850116002,0.697,3684.6,3684.1,1.39285466]
[1717850116203,0.697,3684.6,3684.5,0.17363044]
[1717850116413,0.725,3684.6,3684.1,1.39285466]
[1717850116597,0.58666603,3684.7,3684.1,1.39285466]
[1717850116598,0.725,3684.4,3684.1,1.39285466]
[1717850123330,5.71392,3684.8,3683.5,9.8212]
[1717850123331,0.725,3684.2,3683.5,9.8212]
[1717850123543,0.725,3684.0,3683.6,1.39285466]
[1717850124868,0.725,3683.8,3683.6,1.39285466]
[1717850125165,0.725,3683.8,3683.5,7.48]
[1717850125364,0.725,3683.6,3683.5,8.87285466]
[1717850125574,0.725,3683.6,3683.3,2.2]
[1717850125863,0.725,3683.6,3683.3,3.59285466]
[1717850126224,2.71472,3683.7,3683.4,0.17375007]
[1717850126429,0.725,3683.5,3683.4,0.17375007]
[1717850127736,0.725,3683.5,3682.9,0.0018426]
[1717850127939,0.725,3683.2,3683.0,1.56660473]
[1717850128123,0.725,3683.2,3683.0,0.17375007]
[1717850128328,3.0711,3683.2,3683.0,0.17375007]
[1717850128590,3.649695,3683.2,3683.0,0.17375007]
[1717850129229,2.7151,3683.1,3683.0,0.17375007]
[1717850130013,2.7151,3683.1,3682.9,0.0018426]
[1717850130129,0.725,3683.0,3682.9,0.0018426]
[1717850130326,2.7151,3683.1,3682.9,0.0018426]
[1717850130597,5.7148,3683.6,3683.0,1.39285466]
[1717850130871,0.725,3683.3,3683.0,1.39285466]
[1717850131170,0.725,3683.4,3683.1,0.17375007]
[1717850131388,0.725,3683.4,3683.2,1.39285466]
[1717850131738,0.725,3683.4,3683.3,0.27670197]
[1717850131924,0.725,3683.4,3683.3,1.39285466]
[1717850132123,0.725,3683.4,3683.3,1.66955663]
[1717850133756,0.725,3683.4,3682.9,0.0018426]
[1717850133965,0.64398,3683.4,3683.0,0.27741413]
[1717850134170,0.725,3683.1,3683.0,0.27741413]
[1717850135540,0.725,3683.3,3683.0,1.67026879]
[1717850135742,0.725,3683.3,3683.1,1.39285466]
[1717850136141,0.725,3683.3,3683.2,0.27741413]
[1717850136347,0.725,3683.3,3683.1,1.39285466]
[1717850136590,0.725,3683.3,3683.2,0.27741413]
[1717850136802,0.725,3683.3,3683.1,1.39285466]
[1717850137001,0.725,3683.3,3683.2,0.27741413]
[1717850137160,0.725,3683.3,3682.9,0.0018426]
[1717850137161,1.36898,3683.3,3682.9,0.0018426]
[1717850137344,0.725,3683.0,3682.9,1.39469726]
[1717850138649,3.0,3683.2,3682.9,1.39469726]
[1717850138849,3.0,3683.2,3682.9,0.0018426]
[1717850138850,0.725,3683.0,3682.9,0.0018426]
[1717850142262,1.66801,3683.0,3682.9,0.0018426]
[1717850144849,3.0,3683.2,3682.9,0.0018426]
[1717850145102,3.725,3683.2,3683.0,1.39285466]
[1717850145512,3.725,3683.2,3683.1,0.27802495]
[1717850147183,3.725,3683.2,3682.9,0.0018426]
[1717850147425,0.725,3683.0,3682.9,0.0018426]